bitfinex-derivatives/quotes_ETHF0:USTF0_20260116
["timestamp","ask_amount","ask_price","bid_price","bid_amount"]
[1768561148618,1.31511015,3299.4,3298.3,0.40741202]
[1768561148818,1.31511015,3299.3,3298.3,0.40741202]
[1768561149018,0.85848854,3299.5,3298.3,0.40741202]
[1768561149019,0.93201024,3299.2,3298.3,0.40741202]
[1768561149228,0.85848854,3299.5,3298.3,0.40741202]
[1768561149428,1.31508416,3299.4,3298.3,0.40741202]
[1768561149627,1.31508416,3299.3,3298.3,0.40741202]
[1768561149833,0.93199103,3299.2,3298.3,0.40741202]
[1768561150032,0.85848854,3299.5,3298.3,0.40741202]
[1768561150330,1.31508121,3299.4,3298.3,0.40741202]
[1768561150527,0.93198898,3299.3,3298.3,0.40741202]
[1768561150829,0.93198898,3299.2,3298.3,0.40741202]
[1768561151028,0.85848854,3299.5,3298.3,0.40741202]
[1768561151228,1.31508067,3299.4,3298.3,0.40741202]
[1768561151419,0.93198861,3299.3,3298.3,0.40741202]
[1768561151615,0.93198861,3299.2,3298.3,0.40741202]
[1768561151816,0.15157,3299.8,3298.3,0.40741202]
[1768561152025,2.17354591,3299.7,3298.3,0.40741202]
[1768561152227,1.31505737,3299.6,3298.3,0.40741202]
[1768561152416,1.31505737,3299.5,3298.3,0.40741202]
[1768561152629,1.31505737,3299.4,3298.3,0.40741202]
[1768561152921,0.93197156,3299.3,3298.3,0.40741202]
[1768561153121,0.93197156,3299.2,3298.3,0.40741202]
[1768561153321,0.85848854,3299.7,3298.3,0.40741202]
[1768561153621,1.31504951,3299.6,3298.3,0.40741202]
[1768561153817,1.31504951,3299.5,3298.3,0.40741202]
[1768561154022,1.31504951,3299.4,3298.3,0.40741202]
[1768561154222,0.93196686,3299.3,3298.3,0.40741202]
[1768561154528,0.93196686,3299.2,3298.3,0.40741202]
[1768561154730,0.85848854,3299.7,3298.3,0.40741202]
[1768561154930,1.31494069,3299.6,3298.3,0.40741202]
[1768561155123,1.31494069,3299.5,3298.3,0.40741202]
[1768561155323,1.31494069,3299.4,3298.3,0.40741202]
[1768561155525,0.93188992,3299.3,3298.3,0.40741202]
[1768561155724,0.93188992,3299.2,3298.3,0.40741202]
[1768561155925,0.85848854,3299.7,3298.3,0.40741202]
[1768561156131,1.31497018,3299.6,3298.3,0.40741202]
[1768561156333,1.31497018,3299.5,3298.3,0.40741202]
[1768561156629,1.31497018,3299.4,3298.3,0.40741202]
[1768561156829,0.93191105,3299.3,3298.3,0.40741202]
[1768561157019,0.93191105,3299.2,3298.3,0.40741202]
[1768561157220,0.85848854,3299.7,3298.3,0.40741202]
[1768561157418,1.3150847,3299.6,3298.3,0.40741202]
[1768561157628,1.3150847,3299.5,3298.3,0.40741202]
[1768561157932,1.3150847,3299.4,3298.3,0.40741202]
[1768561158132,0.9319915,3299.3,3298.3,0.40741202]
[1768561158331,0.85848854,3299.7,3298.3,0.40741202]
[1768561158332,0.9319915,3299.2,3298.3,0.40741202]
[1768561158533,0.85848854,3299.7,3298.3,0.40741202]
[1768561158726,1.31517351,3299.6,3298.3,0.40741202]
[1768561158926,1.31517351,3299.5,3298.3,0.40741202]
[1768561159131,1.31517351,3299.4,3298.3,0.40741202]
[1768561159331,1.31517351,3299.3,3298.3,0.40741202]
[1768561159533,0.93205424,3299.2,3298.3,0.40741202]
[1768561159833,0.85848854,3299.7,3298.3,0.40741202]
[1768561160032,1.31528316,3299.6,3298.3,0.40741202]
[1768561160234,1.31528316,3299.5,3298.3,0.40741202]
[1768561160531,1.31528316,3299.4,3298.3,0.40741202]
[1768561160834,1.31528316,3299.3,3298.3,0.40741202]
[1768561161132,0.93213231,3299.2,3298.3,0.40741202]
[1768561161328,0.93237072,3299.1,3298.3,0.40741202]
[1768561161530,0.85848854,3299.7,3298.3,0.40741202]
[1768561161730,1.31561681,3299.6,3298.3,0.40741202]
[1768561161924,1.31561681,3299.5,3298.3,0.40741202]
[1768561162126,1.31561681,3299.4,3298.3,0.40741202]
[1768561162425,1.31561681,3299.3,3298.3,0.40741202]
[1768561162632,0.93236982,3299.2,3298.3,0.40741202]
[1768561162835,0.93236982,3299.1,3298.3,0.40741202]
[1768561163034,0.85848854,3299.6,3298.3,0.40741202]
[1768561163234,1.31572177,3299.5,3298.3,0.40741202]
[1768561163536,1.31572177,3299.4,3298.3,0.40741202]
[1768561163733,1.31572177,3299.3,3298.3,0.40741202]
[1768561164036,0.93244722,3299.2,3298.3,0.40741202]
[1768561164233,0.93244722,3299.1,3298.3,0.40741202]
[1768561164434,0.85848854,3299.6,3298.3,0.40741202]
[1768561164637,1.31593758,3299.5,3298.3,0.40741202]
[1768561164834,1.31593758,3299.4,3298.3,0.40741202]
[1768561165035,1.31593758,3299.3,3298.3,0.40741202]
[1768561165238,0.9325968,3299.2,3298.3,0.40741202]
[1768561165431,0.9325968,3299.1,3298.3,0.40741202]
[1768561165631,0.15157,3299.8,3298.3,0.40741202]
[1768561165832,2.17447968,3299.7,3298.3,0.40741202]
[1768561166034,1.31599114,3299.6,3298.3,0.40741202]
[1768561166332,1.31599114,3299.5,3298.3,0.40741202]
[1768561166533,1.31599114,3299.4,3298.3,0.40741202]
[1768561166733,1.31599114,3299.3,3298.3,0.40741202]
[1768561166933,0.93263478,3299.2,3298.3,0.40741202]
[1768561167134,0.93263478,3299.1,3298.3,0.40741202]
[1768561167340,0.85848854,3299.7,3298.3,0.40741202]
[1768561167540,1.31610719,3299.6,3298.3,0.40741202]
[1768561167741,1.31610719,3299.5,3298.3,0.40741202]
[1768561167942,1.31610719,3299.4,3298.3,0.40741202]
[1768561168239,1.31610719,3299.3,3298.3,0.40741202]
[1768561168433,0.85848854,3299.7,3298.3,0.40741202]
[1768561168434,0.93271697,3299.2,3298.3,0.40741202]
[1768561168637,0.93271697,3299.1,3298.3,0.40741202]
[1768561168840,0.85848854,3299.7,3298.3,0.40741202]
[1768561169030,1.31617602,3299.6,3298.3,0.40741202]
[1768561169228,1.31617602,3299.5,3298.3,0.40741202]
[1768561169434,1.31617602,3299.4,3298.3,0.40741202]
[1768561169636,1.31617602,3299.3,3298.3,0.40741202]
[1768561169941,0.93276586,3299.2,3298.3,0.40741202]
[1768561170141,0.93276586,3299.1,3298.3,0.40741202]
[1768561170342,0.85848854,3299.7,3298.3,0.40741202]
[1768561170542,1.31627292,3299.6,3298.3,0.40741202]
[1768561170742,1.31627292,3299.5,3298.3,0.40741202]
[1768561170944,1.31627292,3299.4,3298.3,0.40741202]
[1768561171148,0.93283512,3299.3,3298.3,0.40741202]
[1768561171442,0.93283512,3299.2,3298.3,0.40741202]
[1768561171745,0.93283512,3299.1,3298.3,0.40741202]
[1768561171941,0.85848854,3299.7,3298.3,0.40741202]
[1768561172139,1.31623305,3299.6,3298.3,0.40741202]
[1768561172341,1.31623305,3299.5,3298.3,0.40741202]
[1768561172541,1.31623305,3299.4,3298.3,0.40741202]
[1768561172740,1.31623305,3299.3,3298.3,0.40741202]
[1768561172942,0.93274364,3299.2,3298.3,0.40741202]
[1768561173241,0.93274364,3299.1,3298.3,0.40741202]
[1768561173443,0.85848854,3299.7,3298.3,0.40741202]
[1768561173744,1.31625579,3299.6,3298.3,0.40741202]
[1768561173942,1.31625579,3299.5,3298.3,0.40741202]
[1768561174144,1.3162559,3299.4,3298.3,0.40741202]
[1768561174341,1.3162559,3299.3,3298.3,0.40741202]
[1768561174545,0.93276003,3299.2,3298.3,0.40741202]
[1768561174844,0.93276003,3299.1,3298.3,0.40741202]
[1768561175044,0.85848854,3299.7,3298.3,0.40741202]
[1768561175241,1.31626883,3299.6,3298.3,0.40741202]
[1768561175545,1.31626883,3299.5,3298.3,0.40741202]
[1768561175746,1.31626883,3299.4,3298.3,0.40741202]
[1768561175935,1.31626883,3299.3,3298.3,0.40741202]
[1768561176140,0.93276925,3299.2,3298.3,0.40741202]
[1768561176345,0.93276925,3299.1,3298.3,0.40741202]
[1768561176543,0.85848854,3299.6,3298.3,0.40741202]
[1768561176737,1.31628633,3299.5,3298.3,0.40741202]
[1768561176934,1.31628633,3299.4,3298.3,0.40741202]
[1768561177146,1.31628633,3299.3,3298.3,0.40741202]
[1768561177445,0.93278144,3299.2,3298.3,0.40741202]
[1768561177652,0.93278144,3299.1,3298.3,0.40741202]
[1768561177950,0.85848854,3299.6,3298.3,0.40741202]
[1768561178141,1.31627809,3299.5,3298.3,0.40741202]
[1768561178337,0.85848854,3299.6,3298.3,0.40741202]
[1768561178338,1.31627809,3299.4,3298.3,0.40741202]
[1768561178536,1.31627809,3299.3,3298.3,0.40741202]
[1768561178740,0.93277505,3299.2,3298.3,0.40741202]
[1768561179041,0.93277505,3299.1,3298.3,0.40741202]
[1768561179235,0.85848854,3299.6,3298.3,0.40741202]
[1768561179438,1.3161787,3299.5,3298.3,0.40741202]
[1768561179641,1.3161787,3299.4,3298.3,0.40741202]
[1768561179840,1.3161787,3299.3,3298.3,0.40741202]
[1768561180041,0.9327015,3299.2,3298.3,0.40741202]
[1768561180240,0.9327015,3299.1,3298.3,0.40741202]
[1768561180441,0.85848854,3299.6,3298.3,0.40741202]
[1768561180741,0.93270032,3299.5,3298.3,0.40741202]
[1768561180941,1.31617676,3299.4,3298.3,0.40741202]
[1768561181144,1.31617676,3299.3,3298.3,0.40741202]
[1768561181346,0.93270032,3299.2,3298.3,0.40741202]
[1768561181647,0.93270032,3299.1,3298.3,0.40741202]
[1768561181946,0.15157,3299.8,3298.3,0.40741202]
[1768561182147,1.31587527,3299.7,3298.3,0.40741202]
[1768561182347,1.31587527,3299.6,3298.3,0.40741202]
[1768561182549,1.31587527,3299.5,3298.3,0.40741202]
[1768561182748,1.31587527,3299.4,3298.3,0.40741202]
[1768561182949,1.31587527,3299.3,3298.3,0.40741202]
[1768561183144,0.93248658,3299.2,3298.3,0.40741202]
[1768561183355,0.93248658,3299.1,3298.3,0.40741202]
[1768561183658,0.15157,3299.8,3298.3,0.40741202]
[1768561183850,1.31586045,3299.7,3298.3,0.40741202]
[1768561184050,1.31586045,3299.6,3298.3,0.40741202]
[1768561184256,1.31586045,3299.5,3298.3,0.40741202]
[1768561184554,1.31586045,3299.4,3298.3,0.40741202]
[1768561184754,1.31586045,3299.3,3298.3,0.40741202]
[1768561184955,0.93247591,3299.2,3298.3,0.40741202]
[1768561185145,0.15157,3299.8,3298.3,0.40741202]
[1768561185343,1.31583658,3299.7,3298.3,0.40741202]
[1768561185549,1.31583658,3299.6,3298.3,0.40741202]
[1768561185750,1.31583658,3299.5,3298.3,0.40741202]
[1768561185952,1.31583658,3299.4,3298.3,0.40741202]
[1768561186152,1.31583658,3299.3,3298.3,0.40741202]
[1768561186353,0.93246644,3299.2,3298.3,0.40741202]
[1768561186554,0.93241724,3299.1,3298.3,0.40741202]
[1768561186852,0.15157,3299.8,3298.3,0.40741202]
[1768561187057,1.31577379,3299.7,3298.3,0.40741202]
[1768561187257,1.31577379,3299.6,3298.3,0.40741202]
[1768561187556,1.31577379,3299.5,3298.3,0.40741202]
[1768561187745,1.31577379,3299.4,3298.3,0.40741202]
[1768561187947,0.15157,3299.8,3298.3,0.40741202]
[1768561187948,1.31577379,3299.3,3298.3,0.40741202]
[1768561188147,0.93241615,3299.2,3298.3,0.40741202]
[1768561188348,0.93241615,3299.1,3298.3,0.40741202]
[1768561188545,0.54135503,3299.8,3298.3,0.40741202]
[1768561188758,1.31577561,3299.7,3297.9,0.42815896]
[1768561188949,1.31577561,3299.6,3297.9,0.42815896]
[1768561189149,1.31577561,3299.5,3297.9,0.42815896]
[1768561189354,1.31577561,3299.4,3297.9,0.42815896]
[1768561189658,1.31577561,3299.3,3297.9,0.42815896]
[1768561189846,0.93241744,3299.2,3297.9,0.42815896]
[1768561190050,0.93241744,3299.1,3297.9,0.42815896]
[1768561190247,1.39969198,3299.8,3297.9,0.42815896]
[1768561190453,1.31578714,3299.7,3297.9,0.42815896]
[1768561190653,1.31578714,3299.6,3297.9,0.42815896]
[1768561190853,1.31578714,3299.5,3297.9,0.42815896]
[1768561191056,1.31578714,3299.4,3297.9,0.42815896]
[1768561191255,1.39969198,3299.8,3297.9,0.42815896]
[1768561191256,1.31578714,3299.3,3297.9,0.42815896]
[1768561191457,0.93242528,3299.2,3297.9,0.42815896]
[1768561191759,0.93242528,3299.1,3297.9,0.42815896]
[1768561191961,1.39969198,3299.8,3297.9,0.42815896]
[1768561192163,1.31579421,3299.7,3297.9,0.42815896]
[1768561192460,1.31579421,3299.6,3297.9,0.42815896]
[1768561192649,1.31579421,3299.5,3297.9,0.42815896]
[1768561192851,1.31579421,3299.4,3297.9,0.42815896]
[1768561193047,1.31579421,3299.3,3297.9,0.42815896]
[1768561193247,0.54135503,3299.8,3297.9,0.42815896]
[1768561193248,0.93243029,3299.2,3297.9,0.42815896]
[1768561193459,0.93243029,3299.1,3297.9,0.42815896]
[1768561193660,0.54135503,3299.8,3297.9,0.42815896]
[1768561193955,1.31580497,3299.7,3298.0,0.43364863]
[1768561194159,1.31580497,3299.6,3298.0,0.43364863]
[1768561194363,1.31580497,3299.5,3298.0,0.43364863]
[1768561194563,1.31580497,3299.4,3298.0,0.43364863]
[1768561194764,0.15157,3299.8,3298.0,0.43364863]
[1768561194765,0.93243947,3299.3,3298.0,0.43364863]
[1768561194965,0.15157,3299.8,3298.0,0.43364863]
[1768561195163,1.31359605,3299.7,3298.2,0.43364863]
[1768561195365,1.31359605,3299.6,3298.2,0.43364863]
[1768561195572,0.93024668,3299.5,3298.2,0.43364863]
[1768561195761,0.15157,3299.8,3298.2,0.43364863]
[1768561195762,0.93008435,3299.4,3298.2,0.43364863]
[1768561195959,0.15157,3299.8,3298.2,0.43364863]
[1768561196163,1.31339351,3299.7,3298.2,0.43364863]
[1768561196360,1.31339351,3299.6,3298.2,0.43364863]
[1768561196562,0.93008423,3299.5,3298.2,0.43364863]
[1768561196869,0.15157,3299.8,3298.2,0.43364863]
[1768561197066,1.31319485,3299.7,3298.2,0.43364863]
[1768561197259,0.92994858,3299.6,3298.2,0.43364863]
[1768561197457,0.92994858,3299.5,3298.2,0.43364863]
[1768561197658,0.15157,3299.8,3298.2,0.43364863]
[1768561197858,1.31303295,3299.7,3298.2,0.43364863]
[1768561198062,0.92983944,3299.6,3298.2,0.43364863]
[1768561198267,0.92983944,3299.5,3298.2,0.43364863]
[1768561198568,0.15157,3299.8,3298.2,0.43364863]
[1768561198860,1.31288447,3299.7,3298.2,0.43364863]
[1768561199168,0.92973492,3299.6,3298.2,0.43364863]
[1768561199370,0.92973492,3299.5,3298.2,0.43364863]
[1768561199570,0.15157,3299.8,3298.2,0.43364863]
[1768561199762,1.31276052,3299.7,3298.2,0.43364863]
[1768561199957,0.92964809,3299.6,3298.2,0.43364863]
[1768561200161,0.00255241,3300.0,3298.2,0.43364863]
[1768561200361,0.00255241,3300.0,3299.0,0.43364863]
[1768561205062,0.00255241,3300.0,3298.1,0.43364863]
[1768561205283,0.15159,3299.6,3298.1,0.43364863]
[1768561205588,0.92767631,3299.5,3298.1,0.43364863]
[1768561205789,0.92767631,3299.4,3298.1,0.43364863]
[1768561205984,0.15159,3299.6,3298.1,0.43364863]
[1768561206185,0.92764124,3299.5,3298.1,0.43364863]
[1768561206385,0.92764124,3299.4,3298.1,0.43364863]
[1768561206691,0.15159,3299.6,3298.1,0.43364863]
[1768561206986,0.9276399,3299.5,3298.1,0.43364863]
[1768561207187,0.9276399,3299.4,3298.1,0.43364863]
[1768561207386,0.15159,3299.6,3298.1,0.43364863]
[1768561207588,0.92763287,3299.5,3298.1,0.43364863]
[1768561207888,0.92763287,3299.4,3298.1,0.43364863]
[1768561208092,0.15159,3299.6,3298.1,0.43364863]
[1768561208390,0.92766148,3299.5,3298.1,0.43364863]
[1768561208590,0.92766148,3299.4,3298.1,0.43364863]
[1768561208791,0.15159,3299.6,3298.1,0.43364863]
[1768561208990,0.92762603,3299.5,3298.1,0.43364863]
[1768561209191,0.92762603,3299.4,3298.1,0.43364863]
[1768561209392,0.15159,3299.6,3298.1,0.43364863]
[1768561209692,0.92759857,3299.5,3298.1,0.43364863]
[1768561209895,0.92759857,3299.4,3298.1,0.43364863]
[1768561210094,0.15159,3299.6,3298.1,0.43364863]
[1768561210390,0.92762182,3299.5,3298.1,0.43364863]
[1768561210593,0.92762182,3299.4,3298.1,0.43364863]
[1768561210791,0.15159,3299.6,3298.1,0.43364863]
[1768561211092,0.92758821,3299.5,3298.1,0.43364863]
[1768561211293,0.15159,3299.6,3298.1,0.43364863]
[1768561211294,0.92758821,3299.4,3298.1,0.43364863]
[1768561211586,0.15159,3299.6,3298.1,0.43364863]
[1768561211792,0.92797478,3299.5,3298.1,0.43364863]
[1768561211985,0.92797478,3299.4,3298.1,0.43364863]
[1768561212291,0.15159,3299.6,3298.1,0.43364863]
[1768561212492,0.92799286,3299.5,3298.1,0.43364863]
[1768561212685,0.92799286,3299.4,3298.1,0.43364863]
[1768561212887,0.15159,3299.6,3298.1,0.43364863]
[1768561213085,0.92799354,3299.5,3298.1,0.43364863]
[1768561213286,0.92799354,3299.4,3298.1,0.43364863]
[1768561213481,0.15159,3299.6,3298.1,0.43364863]
[1768561213685,0.92798281,3299.5,3298.1,0.43364863]
[1768561213887,0.92798281,3299.4,3298.1,0.43364863]
[1768561214080,0.15159,3299.6,3298.1,0.43364863]
[1768561214285,0.9280109,3299.5,3298.1,0.43364863]
[1768561214487,0.9280109,3299.4,3298.1,0.43364863]
[1768561214687,0.15159,3299.6,3298.1,0.43364863]
[1768561214891,0.9279606,3299.5,3298.1,0.43364863]
[1768561215099,0.9279606,3299.4,3298.1,0.43364863]
[1768561215393,0.9279606,3299.3,3298.1,0.43364863]
[1768561215587,0.15159,3299.6,3298.1,0.43364863]
[1768561215787,1.31039301,3299.5,3298.1,0.43364863]
[1768561215998,0.92795675,3299.4,3298.1,0.43364863]
[1768561216191,0.92795675,3299.3,3298.1,0.43364863]
[1768561216395,0.15159,3299.6,3298.1,0.43364863]
[1768561216595,1.31043652,3299.5,3298.1,0.43364863]
[1768561216795,0.92798719,3299.4,3298.1,0.43364863]
[1768561216997,0.15159,3299.6,3298.1,0.43364863]
[1768561217197,1.31046135,3299.5,3298.1,0.43364863]
[1768561217398,0.92801148,3299.4,3298.1,0.43364863]
[1768561217591,0.92796423,3299.3,3298.1,0.43364863]
[1768561217790,0.15159,3299.6,3298.1,0.43364863]
[1768561217993,1.31041794,3299.5,3298.1,0.43364863]
[1768561218193,0.92797406,3299.4,3298.1,0.43364863]
[1768561218496,0.15159,3299.6,3298.1,0.43364863]
[1768561218690,1.3103916,3299.5,3298.1,0.43364863]
[1768561218891,0.92795466,3299.4,3298.1,0.43364863]
[1768561219191,0.15159,3299.6,3298.1,0.43364863]
[1768561219391,1.31037076,3299.5,3298.1,0.43364863]
[1768561219593,0.92793989,3299.4,3298.1,0.43364863]
[1768561219793,0.15159,3299.6,3298.1,0.43364863]
[1768561220092,1.31037081,3299.5,3298.1,0.43364863]
[1768561220295,0.92793992,3299.4,3298.1,0.43364863]
[1768561220600,0.15159,3299.6,3298.1,0.43364863]
[1768561220800,0.9279231,3299.5,3298.1,0.43364863]
[1768561221098,0.9279231,3299.4,3298.1,0.43364863]
[1768561221300,0.15159,3299.6,3298.1,0.43364863]
[1768561221493,0.9279107,3299.5,3298.1,0.43364863]
[1768561221692,0.9279107,3299.4,3298.1,0.43364863]
[1768561221896,0.15159,3299.6,3298.1,0.43364863]
[1768561222093,0.92791081,3299.5,3298.1,0.43364863]
[1768561222295,0.92791081,3299.4,3298.1,0.43364863]
[1768561222597,0.15159,3299.6,3298.1,0.43364863]
[1768561222799,0.92789924,3299.5,3298.1,0.43364863]
[1768561223103,0.92789924,3299.4,3298.1,0.43364863]
[1768561223399,0.15159,3299.6,3298.1,0.43364863]
[1768561223595,0.92788584,3299.5,3298.1,0.43364863]
[1768561223795,0.92788584,3299.4,3298.1,0.43364863]
[1768561223998,0.15159,3299.6,3298.1,0.43364863]
[1768561224187,0.92791475,3299.5,3298.1,0.43364863]
[1768561224389,0.92791475,3299.4,3298.1,0.43364863]
[1768561224587,0.15159,3299.6,3298.1,0.43364863]
[1768561224787,0.92786227,3299.5,3298.1,0.43364863]
[1768561225000,0.92786227,3299.4,3298.1,0.43364863]
[1768561225203,0.15159,3299.6,3298.1,0.43364863]
[1768561225404,0.92784447,3299.5,3298.1,0.43364863]
[1768561225698,0.92784447,3299.4,3298.1,0.43364863]
[1768561226004,0.5616087,3299.6,3297.7,0.40491743]
[1768561226205,1.31024594,3299.5,3297.7,0.40491743]
[1768561226402,0.92786883,3299.4,3297.7,0.40491743]
[1768561226703,0.92786883,3299.3,3297.7,0.40491743]
[1768561226901,0.5616087,3299.6,3297.7,0.40491743]
[1768561227104,1.3102146,3299.5,3297.7,0.40491743]
[1768561227303,0.92783404,3299.4,3297.7,0.40491743]
[1768561227504,0.92783404,3299.3,3297.7,0.40491743]
[1768561227805,0.5616087,3299.6,3297.7,0.40491743]
[1768561228006,1.31017985,3299.5,3297.7,0.40491743]
[1768561228205,0.92780817,3299.4,3297.7,0.40491743]
[1768561228406,0.92780817,3299.3,3297.7,0.40491743]
[1768561228607,0.5616087,3299.6,3297.7,0.40491743]
[1768561228807,1.31017312,3299.5,3297.7,0.40491743]
[1768561229011,0.92780233,3299.4,3297.7,0.40491743]
[1768561229201,0.92780233,3299.3,3297.7,0.40491743]
[1768561229402,0.5616087,3299.6,3297.7,0.40491743]
[1768561229598,1.31015914,3299.5,3297.7,0.40491743]
[1768561229797,0.92779087,3299.4,3297.7,0.40491743]
[1768561230004,0.92779087,3299.3,3297.7,0.40491743]
[1768561230211,0.5616087,3299.6,3297.7,0.40491743]
[1768561230411,1.3101993,3299.5,3297.7,0.40491743]
[1768561230713,0.92782287,3299.4,3297.7,0.40491743]
[1768561231012,0.92782647,3299.3,3297.7,0.40491743]
[1768561231311,0.5616087,3299.6,3297.7,0.40491743]
[1768561231611,1.311373,3299.5,3297.7,0.40491743]
[1768561231798,0.92887805,3299.4,3297.7,0.40491743]
[1768561232111,0.92887805,3299.3,3297.7,0.40491743]
[1768561232314,0.5616087,3299.6,3297.7,0.40491743]
[1768561232610,1.31187319,3299.5,3297.7,0.40491743]
[1768561232810,0.92922013,3299.4,3297.7,0.40491743]
[1768561233002,0.92922013,3299.3,3297.7,0.40491743]
[1768561233198,0.92922013,3299.2,3297.7,0.40491743]
[1768561233415,0.5616087,3299.6,3297.7,0.40491743]
[1768561233609,1.31251331,3299.5,3297.7,0.40491743]
[1768561233908,1.31251331,3299.4,3297.7,0.40491743]
[1768561234102,0.9296524,3299.3,3297.7,0.40491743]
[1768561234312,0.9296524,3299.2,3297.7,0.40491743]
[1768561234610,0.5616087,3299.6,3297.7,0.40491743]
[1768561234812,1.31347323,3299.5,3297.7,0.40491743]
[1768561235012,1.31347323,3299.4,3297.7,0.40491743]
[1768561235210,1.31347323,3299.3,3297.7,0.40491743]
[1768561235514,1.31347323,3299.2,3297.7,0.40491743]
[1768561235712,0.93027339,3299.1,3297.7,0.40491743]
[1768561235912,0.93027339,3299.0,3297.7,0.40491743]
[1768561236109,0.5616087,3299.6,3297.7,0.40491743]
[1768561236304,1.31500757,3299.5,3297.7,0.40491743]
[1768561236504,1.31500757,3299.4,3297.7,0.40491743]
[1768561236813,1.31500757,3299.3,3297.7,0.40491743]
[1768561237007,1.31500757,3299.2,3297.7,0.40491743]
[1768561237207,0.93151449,3299.1,3297.7,0.40491743]
[1768561237412,1.31497905,3299.0,3297.7,0.40491743]
[1768561237712,0.93151449,3298.9,3297.7,0.40491743]
[1768561237914,0.1516,3299.3,3297.7,0.40491743]
[1768561238115,1.31493843,3299.2,3297.7,0.40491743]
[1768561238314,1.31493843,3299.1,3297.7,0.40491743]
[1768561238519,0.93146582,3299.0,3297.7,0.40491743]
[1768561238709,0.93146582,3298.9,3297.7,0.40491743]
[1768561238906,0.1516,3299.3,3297.7,0.40491743]
[1768561239111,1.31477462,3299.2,3297.7,0.40491743]
[1768561239304,1.31477462,3299.1,3297.7,0.40491743]
[1768561239510,1.31474123,3299.0,3297.7,0.40491743]
[1768561239717,0.93134702,3298.9,3297.7,0.40491743]
[1768561239913,0.93134702,3298.8,3297.7,0.40491743]
[1768561240113,0.1516,3299.3,3297.7,0.40491743]
[1768561240317,1.31453312,3299.2,3297.7,0.40491743]
[1768561240517,1.31453312,3299.1,3297.7,0.40491743]
[1768561240712,1.31453312,3299.0,3297.7,0.40491743]
[1768561240913,0.93117428,3298.9,3297.7,0.40491743]
[1768561241115,0.93117428,3298.8,3297.7,0.40491743]
[1768561241414,0.85869485,3299.0,3297.7,0.40491743]
[1768561241619,0.93110369,3298.9,3297.7,0.40491743]
[1768561241919,0.93110369,3298.8,3297.7,0.40491743]
[1768561242120,0.85869485,3299.2,3297.7,0.40491743]
[1768561242320,1.31434919,3299.1,3297.7,0.40491743]
[1768561242507,0.93104254,3299.0,3297.7,0.40491743]
[1768561242710,0.93104254,3298.9,3297.7,0.40491743]
[1768561242912,0.93104254,3298.8,3297.7,0.40491743]
[1768561243111,0.85869485,3299.2,3297.7,0.40491743]
[1768561243313,1.31428158,3299.1,3297.7,0.40491743]
[1768561243612,0.93099411,3299.0,3297.7,0.40491743]
[1768561243813,0.93099411,3298.9,3297.7,0.40491743]
[1768561244118,0.93099672,3298.8,3297.8,1.28753526]
[1768561244321,0.85869485,3299.2,3297.8,1.28753526]
[1768561244510,1.31423245,3299.1,3297.8,1.28753526]
[1768561244708,0.9309585,3299.0,3297.8,1.28753526]
[1768561244917,0.9309585,3298.9,3297.9,0.42884041]
[1768561245120,0.85869485,3299.2,3297.9,0.42884041]
[1768561245420,1.31418702,3299.1,3297.9,0.42884041]
[1768561245622,0.93092574,3299.0,3297.9,0.42884041]
[1768561245917,0.93092574,3298.9,3297.9,0.42884041]
[1768561246121,0.85869485,3299.2,3297.9,0.42884041]
[1768561246311,1.31415957,3299.1,3297.9,0.42884041]
[1768561246518,0.93090582,3299.0,3297.9,0.42884041]
[1768561246717,0.93090582,3298.9,3297.9,0.42884041]
[1768561246918,0.85869485,3299.2,3297.9,0.42884041]
[1768561247117,1.31415982,3299.1,3297.9,0.42884041]
[1768561247319,0.93090603,3299.0,3297.9,0.42884041]
[1768561247621,0.93090603,3298.9,3297.9,0.42884041]
[1768561247822,0.85869485,3299.2,3297.9,0.42884041]
[1768561248024,1.3141398,3299.1,3297.9,0.42884041]
[1768561248225,0.93089144,3299.0,3297.9,0.42884041]
[1768561248417,0.93089144,3298.9,3297.9,0.42884041]
[1768561248624,0.85869485,3299.2,3297.9,0.42884041]
[1768561248826,1.31412314,3299.1,3297.9,0.42884041]
[1768561249029,0.93087848,3299.0,3297.9,0.42884041]
[1768561249325,0.1516,3299.3,3297.9,0.42884041]
[1768561249525,1.31417307,3299.2,3297.9,0.42884041]
[1768561249721,0.93091263,3299.1,3297.9,0.42884041]
[1768561249929,0.93091263,3299.0,3297.9,0.42884041]
[1768561250134,0.1516,3299.3,3297.9,0.42884041]
[1768561250432,1.31419296,3299.2,3297.9,0.42884041]
[1768561250631,0.93092676,3299.1,3297.9,0.42884041]
[1768561250821,0.93092676,3299.0,3297.9,0.42884041]
[1768561251131,0.93094228,3298.9,3297.9,0.42884041]
[1768561251332,0.1516,3299.3,3297.9,0.42884041]
[1768561251533,1.31422485,3299.2,3297.9,0.42884041]
[1768561251729,1.31422485,3299.1,3297.9,0.42884041]
[1768561251940,0.93094968,3299.0,3297.9,0.42884041]
[1768561252127,0.93094968,3298.9,3297.9,0.42884041]
[1768561252328,0.1516,3299.3,3297.9,0.42884041]
[1768561252637,1.31424931,3299.2,3297.9,0.42884041]
[1768561252835,1.31424931,3299.1,3297.9,0.42884041]
[1768561253042,0.9309664,3299.0,3297.9,0.42884041]
[1768561253333,0.9309664,3298.9,3297.9,0.42884041]
[1768561253536,0.1516,3299.3,3297.9,0.42884041]
[1768561253742,1.31427585,3299.2,3297.9,0.42884041]
[1768561253944,1.31427585,3299.1,3297.9,0.42884041]
[1768561254150,0.93098459,3299.0,3297.9,0.42884041]
[1768561254348,0.93098459,3298.9,3297.9,0.42884041]
[1768561254539,0.1516,3299.3,3297.9,0.42884041]
[1768561254738,1.31462695,3299.2,3297.9,0.42884041]
[1768561254940,1.31462695,3299.1,3297.9,0.42884041]
[1768561255142,0.93123264,3299.0,3297.9,0.42884041]
[1768561255349,0.93123264,3298.9,3297.9,0.42884041]
[1768561255551,0.1516,3299.3,3297.9,0.42884041]
[1768561255749,1.31468094,3299.2,3297.9,0.42884041]
[1768561255948,1.31468094,3299.1,3297.9,0.42884041]
[1768561256149,0.93127008,3299.0,3297.9,0.42884041]
[1768561256348,0.93127008,3298.9,3297.9,0.42884041]
[1768561256649,0.1516,3299.3,3297.9,0.42884041]
[1768561256841,1.31471735,3299.2,3297.9,0.42884041]
[1768561257038,1.31471735,3299.1,3297.9,0.42884041]
[1768561257241,0.93130342,3299.0,3297.9,0.42884041]
[1768561257442,0.93130342,3298.9,3297.9,0.42884041]
[1768561257747,0.85869485,3299.2,3297.9,0.42884041]
[1768561258048,1.31473306,3299.1,3297.9,0.42884041]
[1768561258250,0.93131464,3299.0,3297.9,0.42884041]
[1768561258444,0.93131464,3298.9,3297.9,0.42884041]
[1768561258650,0.85869485,3299.2,3297.9,0.42884041]
[1768561258851,1.31474978,3299.1,3297.9,0.42884041]
[1768561259044,0.93132642,3299.0,3297.9,0.42884041]
[1768561259245,0.93132642,3298.9,3297.9,0.42884041]
[1768561259443,0.85869485,3299.2,3297.9,0.42884041]
[1768561259643,1.31476986,3299.1,3297.9,0.42884041]
[1768561259845,0.93134057,3299.0,3297.9,0.42884041]
[1768561260050,0.93134057,3298.9,3297.9,0.42884041]